fUSD/lending_fUSD_20251017
["ID","MTS","AMOUNT","RATE_DAILY","PERIOD"]
[391566509,1760659611228,1000.00000005,0.00027397,120]
[391566527,1760659832347,-289.85548165,0.00013283,2]
[391566528,1760659832361,-617.03451835,0.00013283,2]
[391566529,1760659832371,-167.97270581,0.00013696,2]
[391566530,1760659832382,-906.89,0.0001386,2]
[391566531,1760659832393,-1200.0,0.00014437,2]
[391566532,1760659832403,-906.89,0.00014438,2]
[391566533,1760659832414,-300.0,0.0001461,2]
[391566534,1760659832424,-300.0,0.0001461,2]
[391566535,1760659832435,-300.0,0.0001461,2]
[391566536,1760659832445,-195.0,0.00014611,2]
[391566537,1760659832455,-150.0,0.00014611,2]
[391566538,1760659832465,-250.0,0.00014611,2]
[391566539,1760659832474,-195.0,0.00014611,2]
[391566540,1760659832484,-300.0,0.00014611,2]
[391566541,1760659832494,-300.0,0.00014611,2]
[391566542,1760659832504,-300.0,0.00014611,2]
[391566543,1760659832515,-300.0,0.00014611,2]
[391566544,1760659832525,-200.0,0.00014611,2]
[391566545,1760659832535,-150.0,0.00015014,2]
[391566546,1760659832546,-906.89,0.00015015,2]
[391566547,1760659832555,-200.0,0.00015301,2]
[391566548,1760659832565,-906.89,0.00015593,2]
[391566550,1760659832579,-866.76,0.00016116,2]
[391566552,1760659832589,-3579.8956711,0.00016116,2]
[391566553,1760659832601,-3552.1343289,0.00016116,2]
[391566554,1760659832611,-150.99,0.00016116,2]
[391566555,1760659832621,-906.89,0.0001617,2]
[391566556,1760659832633,-906.89,0.00016748,2]
[391566557,1760659832643,-697.0,0.00017035,2]
[391566558,1760659832653,-906.89,0.00017325,2]
[391566559,1760659832663,-906.89,0.00017903,2]
[391566560,1760659832673,-188.45,0.00018084,2]
[391566561,1760659832683,-906.89,0.0001848,2]
[391566562,1760659832693,-250.0,0.00018596,2]
[391566563,1760659832703,-906.89,0.00019058,2]
[391566564,1760659832713,-158.63,0.00019072,2]
[391566565,1760659832723,-413.38,0.00019195,2]
[391566566,1760659832734,-1034.57,0.00019358,2]
[391566567,1760659832744,-576.15,0.00019382,30]
[391566568,1760659832754,-906.89,0.00019635,2]
[391566569,1760659832764,-478.56,0.00019645,2]
[391566570,1760659832774,-1514.4,0.0001971,2]
[391566571,1760659832784,-166.66,0.00020101,2]
[391566572,1760659832794,-906.89,0.00020213,2]
[391566573,1760659832804,-166.66,0.00020524,2]
[391566574,1760659832815,-906.89,0.0002079,2]
[391566575,1760659832825,-166.66,0.00020947,2]
[391566576,1760659832836,-2000.0,0.000211,2]
[391566577,1760659832846,-170.87,0.00021303,2]
[391566578,1760659832856,-906.89,0.00021368,2]
[391566579,1760659832866,-166.66,0.00021371,2]
[391566580,1760659832877,-166.66,0.00021794,2]
[391566581,1760659832888,-5000.0,0.00021918,2]
[391566582,1760659832898,-600.0,0.00021918,2]
[391566583,1760659832909,-906.89,0.00021945,2]
[391566584,1760659832919,-11967.58374198,0.00022,2]
[391566586,1760659838071,-728.58938868,0.000218,2]
[391566592,1760659838320,-623.2947468,0.000218,2]
[391566593,1760659838333,-1182.80029786,0.000218,2]
[391566594,1760659838346,-16123.31556666,0.000218,2]
[391566595,1760659838356,-4240.67,0.0002207,2]
[391566596,1760659838366,-166.66,0.00022217,30]
[391566597,1760659838377,-300.0,0.00022308,2]
[391566598,1760659838387,-5512.0,0.000224,3]
[391566599,1760659838397,-12006.35443334,0.00022659,7]
[391566600,1760659838414,-512.0,0.00022659,7]
[391566668,1760659840295,-2752.83086266,0.00022659,7]
[391566669,1760659840305,-689.53,0.0002271,2]
[391566670,1760659840315,-500.0,0.00022933,2]
[391566671,1760659840325,-878.63605896,0.00023033,2]
[391566672,1760659840336,-5512.0,0.000231,5]
[391566673,1760659840346,-1664.7725045,0.00023132,2]
[391566674,1760659840356,-322.6107,0.00023232,2]
[391566675,1760659840366,-9552.16786547,0.00023232,2]
[391566676,1760659840376,-1000.0,0.00023232,2]
[391566677,1760659840387,-1000.0,0.00023232,2]
[391566678,1760659840396,-1000.0,0.00023232,2]
[391566679,1760659840407,-1000.0,0.00023232,2]
[391566680,1760659840417,-1000.0,0.00023232,2]
[391566681,1760659840427,-151.0,0.00023232,2]
[391566682,1760659840437,-151.0,0.00023232,2]
[391566683,1760659840448,-1000.0,0.00023232,2]
[391566684,1760659840458,-151.0,0.00023232,2]
[391566685,1760659840467,-151.0,0.00023232,2]
[391566686,1760659840478,-1000.0,0.00023232,2]
[391566687,1760659840488,-151.0,0.00023232,2]
[391566688,1760659840498,-1000.0,0.00023232,2]
[391566689,1760659840508,-151.0,0.00023232,2]
[391566690,1760659840517,-1000.0,0.00023232,2]
[391566691,1760659840527,-151.0,0.00023232,2]
[391566692,1760659840537,-1000.0,0.00023232,2]
[391566693,1760659840547,-1000.0,0.00023232,2]
[391566694,1760659840557,-151.0,0.00023232,2]
[391566695,1760659840567,-250.0,0.00023232,2]
[391566696,1760659840577,-1000.0,0.00023232,2]
[391566697,1760659840587,-1000.0,0.00023232,2]
[391566698,1760659840597,-151.0,0.00023232,2]
[391566699,1760659840607,-250.0,0.00023232,2]
[391566700,1760659840617,-1000.0,0.00023232,2]
[391566701,1760659840627,-151.0,0.00023232,2]
[391566702,1760659840637,-250.0,0.00023232,2]
[391566703,1760659840647,-1000.0,0.00023232,2]
[391566704,1760659840658,-250.0,0.00023232,2]
[391566705,1760659840668,-151.0,0.00023232,2]
[391566706,1760659840678,-1000.0,0.00023232,2]
[391566707,1760659840688,-170.89279193,0.00023232,2]
[391566708,1760659840698,-151.0,0.00023232,2]
[391566709,1760659840708,-1000.0,0.00023232,2]
[391566710,1760659840718,-151.0,0.00023232,2]
[391566711,1760659840728,-1000.0,0.00023232,2]
[391566712,1760659840738,-1000.0,0.00023232,2]
[391566713,1760659840748,-1000.0,0.00023232,2]
[391566714,1760659840758,-1000.0,0.00023232,2]
[391566715,1760659840768,-1000.0,0.00023232,2]
[391566716,1760659840779,-1000.0,0.00023232,2]
[391566717,1760659840788,-1000.0,0.00023232,2]
[391566718,1760659840798,-1000.0,0.00023232,2]
[391566719,1760659840808,-220.0,0.00023232,2]
[391566720,1760659840818,-250.0,0.00023232,2]
[391566721,1760659840827,-234.05915284,0.00023232,2]
[391566722,1760659840837,-250.0,0.00023232,2]
[391566723,1760659840847,-1000.0,0.00023232,2]
[391566724,1760659840857,-250.0,0.00023232,2]
[391566725,1760659840866,-1000.0,0.00023232,2]
[391566726,1760659840877,-696.31596443,0.00023232,2]
[391566727,1760659840888,-250.0,0.00023232,2]
[391566728,1760659840897,-1000.0,0.00023232,2]
[391566729,1760659840907,-250.0,0.00023232,2]
[391566730,1760659840917,-1000.0,0.00023232,2]
[391566731,1760659840926,-250.0,0.00023232,2]
[391566732,1760659840936,-1000.0,0.00023232,2]
[391566733,1760659840947,-250.0,0.00023232,2]
[391566734,1760659840957,-1000.0,0.00023232,2]
[391566735,1760659840967,-250.0,0.00023232,2]
[391566736,1760659840978,-250.0,0.00023232,2]
[391566738,1760659840987,-1000.0,0.00023232,2]
[391566740,1760659840997,-1000.0,0.00023232,2]
[391566743,1760659841007,-250.0,0.00023232,2]
[391566745,1760659841018,-250.0,0.00023232,2]
[391566747,1760659841028,-1000.0,0.00023232,2]
[391566749,1760659841039,-1000.0,0.00023232,2]
[391566751,1760659841049,-250.0,0.00023232,2]
[391566753,1760659841059,-250.0,0.00023232,2]
[391566755,1760659841070,-1000.0,0.00023232,2]
[391566757,1760659841080,-250.0,0.00023232,2]
[391566759,1760659841091,-1000.0,0.00023232,2]
[391566761,1760659841101,-250.0,0.00023232,2]
[391566763,1760659841111,-1000.0,0.00023232,2]
[391566765,1760659841121,-250.0,0.00023232,2]
[391566767,1760659841134,-1000.0,0.00023232,2]
[391566769,1760659841144,-250.0,0.00023232,2]
[391566771,1760659841155,-1000.0,0.00023232,2]
[391566773,1760659841166,-250.0,0.00023232,2]
[391566775,1760659841177,-1000.0,0.00023232,2]
[391566778,1760659841187,-250.0,0.00023232,2]
[391566780,1760659841197,-1000.0,0.00023232,2]
[391566782,1760659841207,-250.0,0.00023232,2]
[391566784,1760659841217,-1000.0,0.00023232,2]
[391566786,1760659841227,-250.0,0.00023232,2]
[391566788,1760659841237,-1000.0,0.00023232,2]
[391566790,1760659841246,-1000.0,0.00023232,2]
[391566792,1760659841256,-1000.0,0.00023232,2]
[391566794,1760659841266,-156.587,0.00023232,2]
[391566796,1760659841275,-162.380719,0.00023232,2]
[391566798,1760659841285,-250.0,0.00023232,2]
[391566800,1760659841295,-168.3888056,0.00023232,2]
[391566801,1760659841305,-250.0,0.00023232,2]
[391566802,1760659841319,-174.61919141,0.00023232,2]
[391566803,1760659841329,-250.0,0.00023232,2]
[391566804,1760659841339,-181.08010149,0.00023232,2]
[391566805,1760659841348,-250.0,0.00023232,2]
[391566806,1760659841358,-187.78006525,0.00023232,2]
[391566807,1760659841368,-250.0,0.00023232,2]
[391566808,1760659841378,-194.72792766,0.00023232,2]
[391566809,1760659841389,-250.0,0.00023232,2]
[391566810,1760659841400,-201.93286099,0.00023232,2]
[391566811,1760659841410,-250.0,0.00023232,2]
[391566812,1760659841421,-209.40437684,0.00023232,2]
[391566813,1760659841430,-250.0,0.00023232,2]
[391566814,1760659841440,-217.15233878,0.00023232,2]
[391566815,1760659841450,-250.0,0.00023232,2]
[391566816,1760659841460,-225.18697532,0.00023232,2]
[391566817,1760659841470,-250.0,0.00023232,2]
[391566818,1760659841480,-233.51889341,0.00023232,2]
[391566819,1760659841490,-250.0,0.00023232,2]
[391566820,1760659841500,-242.15909246,0.00023232,2]
[391566821,1760659841510,-250.0,0.00023232,2]
[391566822,1760659841520,-250.0,0.00023232,2]
[391566823,1760659841529,-214.93784227,0.00023232,2]
[391566824,1760659841539,-250.0,0.00023232,2]
[391566825,1760659841549,-250.0,0.00023232,2]
[391566826,1760659841559,-250.0,0.00023232,2]
[391566827,1760659841570,-250.0,0.00023232,2]
[391566828,1760659841580,-250.0,0.00023232,2]
[391566829,1760659841590,-250.0,0.00023232,2]
[391566830,1760659841599,-250.0,0.00023232,2]
[391566831,1760659841609,-250.0,0.00023232,2]
[391566832,1760659841619,-250.0,0.00023232,2]
[391566833,1760659841629,-9905.5980765,0.00023287,2]
[391566834,1760659841643,-10272.10520533,0.00023342,2]
[391566835,1760659841653,-276.23,0.00023389,2]
[391566836,1760659841663,-500.0,0.00023395,2]
[391566837,1760659841673,-500.0,0.00023395,2]
[391566838,1760659841683,-500.0,0.00023395,2]
[391566839,1760659841694,-500.0,0.00023395,2]
[391566840,1760659841704,-500.0,0.00023395,2]
[391566841,1760659841714,-500.0,0.00023395,2]
[391566842,1760659841724,-500.0,0.00023395,2]
[391566843,1760659841734,-500.0,0.00023395,2]
[391566844,1760659841744,-500.0,0.00023395,2]
[391566845,1760659841754,-500.0,0.00023395,2]
[391566846,1760659841764,-500.0,0.00023395,2]
[391566847,1760659841774,-500.0,0.00023395,2]
[391566848,1760659841784,-500.0,0.00023395,2]
[391566849,1760659841794,-500.0,0.00023395,2]
[391566850,1760659841805,-500.0,0.00023395,2]
[391566851,1760659841815,-500.0,0.00023395,2]
[391566852,1760659841826,-500.0,0.00023395,2]
[391566853,1760659841837,-500.0,0.00023395,2]
[391566854,1760659841847,-500.0,0.00023395,2]
[391566855,1760659841857,-500.0,0.00023395,2]
[391566856,1760659841867,-500.0,0.00023395,2]
[391566857,1760659841877,-500.0,0.00023395,2]
[391566858,1760659841888,-500.0,0.00023395,2]
[391566859,1760659841898,-626.92749738,0.00023395,2]
[391566860,1760659841908,-500.0,0.00023395,2]
[391566861,1760659841919,-500.0,0.00023395,2]
[391566862,1760659841929,-584.4373373,0.00023395,2]
[391566863,1760659841939,-500.0,0.00023395,2]
[391566864,1760659841950,-500.0,0.00023395,2]
[391566865,1760659841961,-500.0,0.00023395,2]
[391566866,1760659841971,-10652.17309792,0.00023397,2]
[391566867,1760659841982,-878.63605896,0.00023418,2]
[391566868,1760659841992,-170.87,0.00023434,2]
[391566869,1760659842003,-11046.30350255,0.00023452,2]
[391566870,1760659842013,-11455.01673214,0.00023507,2]
[391566871,1760659842023,-11878.85235123,0.00023562,2]
[391566872,1760659842033,-878.63605896,0.000236,2]
[391566873,1760659842043,-500.0,0.00023616,2]
[391566874,1760659842054,-12318.36988823,0.00023617,2]
[391566875,1760659842064,-12774.14957409,0.00023672,2]
[391566876,1760659842074,-4018.96385541,0.00023727,2]
[391566877,1760659842124,-4618.09416758,0.00023727,2]
[391566878,1760659842137,-199.89764461,0.0002378,2]
[391566879,1760659842148,-151.0,0.0002378,2]
[391566880,1760659842157,-150.0,0.00023835,2]
[391566881,1760659842167,-1664.77250441,0.00023971,2]
[391566882,1760659842177,-160.0,0.00024,3]
[391566883,1760659842189,-878.63605896,0.00024087,2]
[391566884,1760659842200,-878.63605896,0.0002431,2]
[391566885,1760659842211,-576.15,0.00024363,30]
[391566886,1760659842220,-1306.69763,0.0002455,2]
[391566887,1760659842231,-1576.96291537,0.0002456,2]
[391566888,1760659842240,-878.63605896,0.00024656,2]
[391566889,1760659842250,-666.0,0.00024786,3]
[391566890,1760659842260,-151.0378448,0.00024796,2]
[391566891,1760659842270,-2000.0,0.000248,2]
[391566892,1760659842280,-1504.771803,0.000248,2]
[391566893,1760659842290,-800.0,0.000248,7]
[391566894,1760659842300,-27096.0297083,0.000248,3]
[391566895,1760659842311,-1664.77250441,0.00024811,2]
[391566896,1760659842321,-11535.74,0.00024851,2]
[391566897,1760659842332,-160.0,0.00024854,2]
[391566898,1760659842343,-1893.71934221,0.000249,2]
[391566899,1760659842353,-475.57272817,0.00024921,2]
[391566900,1760659842363,-500.0,0.00024932,2]
[391566901,1760659842374,-1999.99,0.00025,2]
[391566902,1760659842384,-2000.01,0.00025,2]
[391566903,1760659842394,-267.97,0.00025,2]
[391566904,1760659842404,-530.78,0.00025,2]
[391566905,1760659842414,-521.68,0.00025,2]
[391566906,1760659842424,-522.12,0.00025,2]
[391566907,1760659842434,-163.85,0.00025,7]
[391566908,1760659842444,-1523.97,0.00025,2]
[391566909,1760659842454,-21680.2562477,0.00025,2]
[391566910,1760659842463,-163.86,0.00025,7]
[391566911,1760659842473,-491.56,0.00025,7]
[391566912,1760659842483,-316.0,0.00025096,2]
[391566913,1760659842494,-1091.0,0.00025281,2]
[391566914,1760659842504,-608.442,0.00025359,10]
[391566915,1760659842514,-161.7355971,0.00025481,2]
[391566916,1760659842524,-1893.71934214,0.00025543,2]
[391566917,1760659842534,-1306.69764,0.0002555,2]
[391566918,1760659842544,-170.87,0.00025564,2]
[391566919,1760659842554,-1664.77250441,0.0002565,2]
[391566920,1760659842564,-27096.0297083,0.00025686,3]
[391566921,1760659842575,-152.0,0.0002583,4]
[391566922,1760659842585,-527.0,0.00026,2]
[391566923,1760659842595,-163.85,0.00026,7]
[391566924,1760659842605,-526.71778676,0.00026,2]
[391566925,1760659842614,-163.86,0.00026,7]
[391566926,1760659842624,-1573.0,0.00026,2]
[391566927,1760659842635,-491.56,0.00026,7]
[391566928,1760659842646,-426.70684364,0.0002603,3]
[391566929,1760659842656,-9266.45592194,0.00026181,2]
[391566930,1760659842666,-1893.71934214,0.00026186,2]
[391566931,1760659842676,-158.63,0.00026346,2]
[391566932,1760659842686,-1664.77250441,0.00026489,2]
[391566933,1760659842696,-1091.0,0.00026545,2]
[391566934,1760659842706,-1306.69764,0.0002655,2]
[391566935,1760659842716,-300.0,0.00026575,9]
[391566936,1760659842726,-1893.71934214,0.00026829,2]
[391566937,1760659842735,-165.76687382,0.00026899,2]
[391566938,1760659842745,-500.0,0.00026973,2]
[391566939,1760659842754,-500.0,0.0002698,2]
[391566940,1760659842764,-27096.0297083,0.0002699,3]
[391566941,1760659842774,-523.0,0.00027,2]
[391566942,1760659842783,-163.85,0.00027,7]
[391566943,1760659842793,-524.0,0.00027,2]
[391566944,1760659842803,-163.86,0.00027,7]
[391566945,1760659842813,-1571.0,0.00027,2]
[391566946,1760659842822,-491.56,0.00027,7]
[391566947,1760659842832,-9284.6147453,0.00027,2]
[391566948,1760659842849,-3527.39032816,0.00027,2]
[391566949,1760659842861,-46375.99492654,0.00027,2]
[391566950,1760659842871,-2000.0,0.00027,2]
[391566951,1760659842881,-197274.64099324,0.00027,4]
[391566952,1760659843200,-2352.520962,0.0002701,2]
[391566953,1760659843211,-188.45,0.00027127,2]
[391566954,1760659843221,-223.87246046,0.000272,2]
[391566955,1760659843231,-322.22322116,0.0002727,2]
[391566956,1760659843241,-250.17973598,0.00027273,2]
[391566957,1760659843251,-500.0,0.0002728,2]
[391566958,1760659843260,-151.0,0.00027287,7]
[391566959,1760659843271,-108384.118833,0.0002729,3]
[391566960,1760659843281,-67271.706686,0.0002729,3]
[391566961,1760659843291,-500.0,0.00027299,2]
[391566962,1760659843301,-27438.8385751,0.000273,4]
[391566963,1760659843368,-121.31149999,0.000273,4]
[391566969,1760659846706,-302.87,0.00022,2]
[391566970,1760659846716,-5187.97437372,0.000273,4]
[391566985,1760660259291,-296.8117,0.00013183,2]
[391566986,1760660259316,-198.5729393,0.00014501,2]
[391566987,1760660259339,-4.88018679,0.00014902,2]
[391566988,1760660261321,-391.51465291,0.00014902,2]
[391566989,1760660289207,-312.76382331,0.00014937,2]
[391566990,1760660291931,-198.86127945,0.00014937,2]
[391566991,1760660291955,-195.0,0.00014937,2]
[391566992,1760660291978,-127.73599735,0.00014955,2]
[391566993,1760660296223,-122.26400265,0.00014955,2]
[391566994,1760660296252,-278.21373428,0.00014955,2]
[391566995,1760660319662,-451.37,0.00014902,2]
[391566996,1760660321205,-548.63,0.00014902,2]
[391566997,1760660321236,-1000.0,0.00014902,2]
[391566998,1760660321264,-451.37,0.00014902,2]
[391566999,1760660322921,-222.67861483,0.00014902,2]
[391567000,1760660349168,-21.78626572,0.00014955,2]
[391567001,1760660349192,-141.23636059,0.00014972,2]
[391567002,1760660351906,-172.80332904,0.00014972,2]
[391567003,1760660354546,-543.84873733,0.00014972,2]
[391567004,1760660379171,-1000.0,0.00014902,2]
[391567005,1760660381196,-208.01764293,0.00014902,2]
[391567006,1760660382831,-164.35433313,0.00014902,2]
[391567007,1760660384803,-302.0,0.00014902,2]
[391567008,1760660386404,-325.62802394,0.00014902,2]
[391567009,1760660386430,-60.01764293,0.00014902,2]
[391567010,1760660390615,-154.35433313,0.00014902,2]
[391567011,1760660392807,-260.14817896,0.00014902,2]
[391567012,1760660409248,-613.77902078,0.00014901,2]
[391567013,1760660411528,-241.64566687,0.00014901,2]
[391567014,1760660413975,-344.57531235,0.00014901,2]
[391567015,1760660414000,-4.44982925,0.00014972,2]
[391567016,1760660416540,-251.99,0.00014972,2]
[391567019,1760660439185,-449.86340805,0.00014902,2]
[391567020,1760660441325,-288.36659195,0.00014902,2]
[391567021,1760660442817,-261.77,0.00014902,2]
[391567022,1760660442843,-38.27823856,0.00014972,2]
[391567023,1760660454155,-47.39350523,0.00014972,2]
[391567024,1760660454180,-317.37694865,0.00015744,2]
[391567025,1760660456505,-335.28130756,0.00015744,2]
[391567026,1760660459398,-953.93884927,0.00015744,2]
[391567027,1760660461703,-106.38330852,0.00015744,2]
[391567028,1760660461726,-250.0,0.00015824,2]
[391567029,1760660461749,-19.12956596,0.00015824,2]
[391567030,1760660464429,-280.87043404,0.00015824,2]
[391567031,1760660464452,-139.60573365,0.00015824,2]
[391567045,1760660805989,511.36,0.00027397,120]
[391567083,1760661032300,-1662.7766331,0.0001439,2]
[391567084,1760661032311,-486.754,0.000147,2]
[391567085,1760661032322,-160.58944611,0.000149,2]
[391567086,1760661032333,-349.61244174,0.000149,2]
[391567087,1760661032343,-1200.0,0.000149,2]
[391567088,1760661032354,-1122.11685327,0.00014901,2]
[391567089,1760661032364,-480.0,0.00014901,2]
[391567090,1760661032374,-300.0,0.00014901,2]
[391567091,1760661032385,-16789.42991394,0.00014902,5]
[391567092,1760661032401,-1134.6,0.00014902,5]
[391567093,1760661032413,-3060.85176549,0.00014902,5]
[391567094,1760661032426,-13139.7309603,0.00014902,5]
[391567095,1760661032436,-500.0,0.00014973,2]
[391567096,1760661032447,-500.0,0.00014973,2]
[391567097,1760661032457,-500.0,0.00014973,2]
[391567098,1760661032467,-500.0,0.00014973,2]
[391567099,1760661032477,-500.0,0.00014973,2]
[391567100,1760661032487,-500.0,0.00014973,2]
[391567101,1760661032498,-500.0,0.00014973,2]
[391567102,1760661032508,-500.0,0.00014973,2]
[391567103,1760661032522,-500.0,0.00014973,2]
[391567104,1760661032532,-500.0,0.00014999,2]
[391567105,1760661032542,-236.44019989,0.00014999,2]
[391567106,1760661032553,-500.0,0.00014999,2]
[391567107,1760661032563,-311.33940971,0.00014999,2]
[391567108,1760661032573,-500.0,0.00014999,2]
[391567109,1760661032583,-178.2165049,0.00014999,2]
[391567110,1760661032595,-500.0,0.00014999,2]
[391567111,1760661032605,-569.73529655,0.00014999,2]
[391567112,1760661032615,-500.0,0.00014999,2]
[391567113,1760661032625,-500.0,0.00014999,2]
[391567114,1760661032634,-342.7152597,0.00014999,2]
[391567115,1760661032644,-500.0,0.00014999,2]
[391567116,1760661032655,-500.0,0.00014999,2]
[391567117,1760661032665,-500.0,0.00014999,2]
[391567119,1760661032677,-500.0,0.00014999,2]
[391567121,1760661032687,-500.0,0.00014999,2]
[391567122,1760661032697,-500.0,0.00014999,2]
[391567123,1760661032707,-500.0,0.00014999,2]
[391567124,1760661032718,-500.0,0.00014999,2]
[391567125,1760661032728,-500.0,0.00014999,2]
[391567126,1760661032739,-500.0,0.00014999,2]
[391567127,1760661032749,-500.0,0.00014999,2]
[391567128,1760661032759,-500.0,0.00014999,2]
[391567130,1760661032768,-500.0,0.00014999,2]
[391567132,1760661032779,-500.0,0.00014999,2]
[391567134,1760661032790,-500.0,0.00014999,2]
[391567135,1760661032799,-500.0,0.00014999,2]
[391567136,1760661032810,-500.0,0.00014999,2]
[391567137,1760661032820,-256.38162836,0.00014999,2]
[391567138,1760661032830,-500.0,0.00014999,2]
[391567139,1760661032839,-500.0,0.00014999,2]
[391567140,1760661032849,-500.0,0.00014999,2]
[391567141,1760661032859,-500.0,0.00014999,2]
[391567142,1760661032868,-500.0,0.00014999,2]
[391567143,1760661032879,-500.0,0.00014999,2]
[391567144,1760661032889,-500.0,0.00014999,2]
[391567145,1760661032899,-500.0,0.00014999,2]
[391567146,1760661032910,-500.0,0.00014999,2]
[391567147,1760661032920,-500.0,0.00014999,2]
[391567148,1760661032931,-150.0,0.00014999,2]
[391567149,1760661032940,-500.0,0.00014999,2]
[391567150,1760661032950,-500.0,0.00014999,2]
[391567151,1760661032960,-500.0,0.00014999,2]
[391567152,1760661032970,-500.0,0.00014999,2]
[391567153,1760661032980,-500.0,0.00014999,2]
[391567154,1760661032990,-15115.70112938,0.00015,2]
[391567155,1760661033002,-30860.04527189,0.00015,2]
[391567156,1760661033014,-300.0,0.00015,2]
[391567157,1760661033026,-3149.81616644,0.00015,2]
[391567158,1760661033038,-71808.28380066,0.00015,2]
[391567159,1760661038212,-1605.4882117,0.00015,2]
[391567160,1760661038326,-3117.98858062,0.00015,2]
[391567316,1760661040308,-166446.78829396,0.00015,2]
[391567318,1760661040318,-1297402.61273008,0.00015,2]
[391567319,1760661040328,-1014926.11550171,0.00015,2]
[391567320,1760661040339,-236.56358952,0.000152,2]
[391567321,1760661040349,-1959.42686726,0.000153,2]
[391567322,1760661040360,-5274.35883895,0.000154,2]
[391567323,1760661040371,-506.35414518,0.00015521,2]
[391567324,1760661040382,-1000.0,0.00015521,2]
[391567325,1760661040392,-500.0,0.00015521,2]
[391567326,1760661040402,-2210.10240044,0.00015807,2]
[391567327,1760661040412,-300.0,0.00015829,2]
[391567328,1760661040422,-258.90574754,0.00016,2]
[391567329,1760661040434,-859.0,0.00016109,2]
[391567330,1760661040444,-299.99,0.00016116,4]
[391567331,1760661040454,-150.99,0.00016116,2]
[391567332,1760661040464,-1319.92,0.00016116,2]
[391567333,1760661040474,-9999.99,0.00016116,2]
[391567334,1760661040483,-999.99,0.00016116,2]
[391567335,1760661040493,-64500.49,0.00016116,2]
[391567336,1760661040503,-9999.99,0.00016116,2]
[391567337,1760661040513,-5954.99,0.00016116,2]
[391567338,1760661040527,-500.36627413,0.00016173,2]
[391567339,1760661040537,-500.45536036,0.00016173,2]
[391567340,1760661040547,-500.0,0.00016173,2]
[391567341,1760661040556,-500.42702746,0.00016173,2]
[391567342,1760661040567,-500.15284643,0.00016173,2]
[391567343,1760661040576,-500.32606242,0.00016173,2]
[391567344,1760661040586,-500.0,0.00016173,2]
[391567345,1760661040598,-35767.07634138,0.000162,5]
[391567346,1760661040608,-1680.0,0.0001639,2]
[391567347,1760661040617,-195.0,0.00016391,2]
[391567348,1760661040627,-2575.44584674,0.00016432,2]
[391567349,1760661040637,-162.66,0.0001644,2]
[391567350,1760661040655,-349.61244169,0.00016654,2]
[391567351,1760661040671,-204.89044741,0.00017,2]
[391567352,1760661040682,-1580.94959292,0.00017,2]
[391567353,1760661040692,-1959.42686717,0.0001701,2]
[391567354,1760661040702,-686.02,0.00017756,2]
[391567355,1760661040712,-486.18,0.00017827,2]
[391567356,1760661040722,-500.0,0.00018133,2]
[391567357,1760661040732,-349.61244169,0.00018409,2]
[391567358,1760661040743,-1959.42686717,0.0001872,2]
[391567359,1760661040753,-150.98,0.000188,2]
[391567360,1760661040763,-150.98,0.000188,2]
[391567361,1760661040773,-150.98,0.000188,2]
[391567362,1760661040784,-150.98,0.000188,2]
[391567363,1760661040794,-250.0,0.00018886,7]
[391567364,1760661040804,-200.0,0.0001896,2]
[391567365,1760661040814,-618.78578969,0.00018971,2]